[Event "Baku Open 2024"]
[Site "Baku"]
[Date "2024.07.02"]
[Round "4.28"]
[White "Gokerkan, Cem Kaan"]
[Black "Suleimen, Ergali"]
[Result "1-0"]
[ECO "B94"]
[WhiteElo "2512"]
[BlackElo "2254"]
[Annotator "TA"]
[PlyCount "131"]
[EventDate "2024.06.29"]
[EventType "swiss"]
[EventCountry "AZE"]
[SourceTitle "playchess.com"]
[Source "ChessBase"]
[SourceQuality "1"]
[TimeControl "5400+30"]

{[%evp 46,131,0,0,0,0,0,0,0,0,81,73,62,50,55,64,64,67,142,143,184,158,191,189,222,164,166,136,212,233,216,233,301,18,12,0,154,0,142,137,636,0,0,7,422,80,373,23,17,8,19,0,0,0,0,0,16,16,22,23,462,462,462,437,459,447,389,203,344,29,205,162,670,298,29960,29943,29953,678,12309,12229,8383,7257,7181,7181,4456,4332,29995,29996]} 1. e4 {[%emt 0:07:34]} c5 {[%emt 0:00:15]} 2. Nf3 {[%emt 0:00:05]} d6 {[%emt 0:00:19]} 3. d4 {[%emt 0:00:05]} cxd4 {[%emt 0:00:05]} 4. Nxd4 {[%emt 0:00:03]} Nf6 {[%emt 0:00:08]} 5. Nc3 {[%emt 0:00:04]} a6 {[%emt 0:00:06]} 6. Bg5 {[%emt 0:00:44]} Nbd7 {[%emt 0:00:27]} 7. Qe2 {[%emt 0:09:31] B94: Sicilian Najdorf: 6 Bg5 Nbd7.} e5 {[%emt 0:04:10]} 8. Nf5 {[%emt 0:04:14]} h6 {[%emt 0:33:48]} 9. Bxf6 {[%emt 0:02:32]} Nxf6 {[%emt 0:00:07]} 10. O-O-O {[%emt 0:00:15]} g6 {[%emt 0:05:11]} 11. Ne3 {[%emt 0:00:20]} Be6 {[%emt 0:01:28]} 12. Ned5 {[%emt 0:04:23]} Bg7 $146 {[%emt 0:02:06]} ({Predecessor:} 12... Nxd5 13. Nxd5 Rc8 14. Kb1 Rc5 15. Ne3 h5 16. g3 Bh6 17. Qd3 Qa5 18. a3 O-O 19. Qxd6 {0-1 Firouzja,A (2492)-Areshchenko,A (2686) Dubai op 19th 2017 (6)}) 13. h4 {[%emt 0:04:05]} Rc8 {[%emt 0:04:36]} 14. Nxf6+ {[%emt 0:20:19]} Bxf6 {[%emt 0:01:58]} 15. Nd5 {[%emt 0:05:31]} Bxh4 {[%emt 0:04:28]} 16. g3 {[%emt 0:00:36]} Bg5+ {[%emt 0:04:18]} 17. Kb1 {[%emt 0:01:13]} O-O {[%emt 0:03:55]} 18. Bh3 {[%emt 0:03:10]} Rc5 {[%emt 0:06:40]} 19. Bxe6 {[%emt 0:00:12]} fxe6 {[%emt 0:00:04]} 20. Nb4 {[%emt 0:00:03]} Rc7 {[%emt 0:02:59]} 21. Nd3 {[%emt 0:00:22]} Qf6 {[%emt 0:01:48]} 22. Rhf1 {[%emt 0:09:58]} h5 {[%emt 0:02:59]} 23. f4 {[%emt 0:00:39]} exf4 {[%emt 0:00:04]} 24. gxf4 {[%emt 0:00:07]} Bh6 {[%emt 0:00:02]} 25. f5 {[%emt 0:05:38]} exf5 {[%emt 0:01:53]} 26. exf5 {[%emt 0:00:02]} Re7 {[%emt 0:00:05]} 27. Qh2 $1 {[%emt 0:00:12]} Re4 {[%emt 0:02:50]} (27... gxf5 $6 28. Qxh5 Bg7 29. Rd2 $16) (27... Kh8 $11) 28. Qg2 $16 {[%emt 0:10:53]} Rg4 {[%emt 0:00:04]} 29. Qxb7 {[%emt 0:00:17]} gxf5 {[%emt 0:00:04]} 30. Qxa6 {[%emt 0:02:46]} h4 {[%emt 0:00:47]} 31. Qb5 {[%emt 0:01:11]} Kh8 {[%emt 0:05:02]} (31... Qe6 $14) 32. a4 $1 $16 {[%emt 0:00:21]} h3 {[%emt 0:00:45]} 33. Rh1 $1 {[%emt 0:02:26]} Qh4 {[%emt 0:01:57]} 34. a5 $1 {[%emt 0:00:01]} h2 {[%emt 0:04:20]} 35. Qb6 {[%emt 0:02:58]} Qg3 {[%emt 0:03:32]} 36. a6 $1 {[%emt 0:01:21]} Be3 {[%emt 0:03:11]} (36... Rg6 $16 37. Qd4+ Kh7 (37... Bg7 $2 38. Qf4 $18)) 37. Rxh2+ $1 $18 {[%emt 0:02:40]} Qxh2 {[%emt 0:00:04]} 38. Qxe3 {[%emt 0:00:02]} Rfg8 {[%emt 0:01:14]} 39. a7 $2 {[%emt 0:00:10]} (39. b4 $18) 39... Rg1 $11 {[%emt 0:00:31]} 40. Ne1 {[%emt 0:00:01]} Qh1 $2 {[%emt 0:00:55]} (40... Ra8 $11) 41. b3 $2 {[%emt 0:00:23]} (41. b4 $1 $16 {[%cal Rb4b5]}) 41... f4 {[%emt 0:00:38]} (41... Ra8 $11 {keeps the balance.}) 42. Qc3+ $16 {[%emt 0:00:14]} (42. Qxf4 Rxe1 43. Qf6+ Kh7 $16) 42... R1g7 $2 {[%emt 0:00:45][%mdl 8192]} (42... Kh7 $16) 43. Kb2 $2 {[%emt 0:00:15]} ({Not} 43. Rxd6 Kh7 44. Rd3 Rg3 45. Qc7+ R8g7 $18) (43. Rd3 $1 $18 Ra8 44. Rh3+ (44. Rxd6 Kg8 $11) 44... Qxh3 45. Qxh3+ Rh7 46. Qc3+ Kg8 47. Qc4+ Rf7 48. Nf3 (48. Qb5 Rfxa7 49. Qd5+ Kg7 $18)) 43... Ra8 {[%emt 0:00:42]} 44. Rxd6 {[%emt 0:03:39]} Raxa7 $2 {[%emt 0:00:05][%mdl 8192]} (44... Qb7 $1 $11) 45. Rd8+ $18 {[%emt 0:00:49]} Kh7 {[%emt 0:00:04]} 46. Qd3+ $2 {[%emt 0:00:24]} (46. Qc8 $1 $18 {White wants to mate with Rh8+.} Qe4 (46... Qxe1 47. Rh8+ Kg6 48. Qg4+ Kf7 49. Qxf4+ Ke7 50. Qf8+ Kd7 51. Qxg7+ Qe7 52. Qxe7+ Kxe7 53. Rh7+ Kd6 54. Rxa7) 47. Qh3+ Kg6 48. Rd6+ Kf7 49. Qh5+ Ke7 50. Qc5) 46... Rg6 $11 {[%emt 0:00:11]} 47. Rd6 {[%emt 0:00:35]} Qh6 {[%emt 0:01:35]} 48. Nf3 {[%emt 0:00:07]} Qg7+ $1 {[%emt 0:00:04]} 49. Nd4 {[%emt 0:00:35]} Rf7 {[%emt 0:00:36]} 50. Kb1 {[%emt 0:00:49]} Qh6 {[%emt 0:00:48]} 51. Nf5 {[%emt 0:00:20]} Qh1+ {[%emt 0:00:37]} 52. Kb2 {[%emt 0:00:05]} Qh5 $2 {[%emt 0:00:19][%mdl 8192]} (52... Ra7 $1 $11 {and Black stays safe.} 53. Rd7+ Rxd7 54. Qxd7+ Kh8) 53. Nh4 $1 $18 {[%emt 0:00:31]} Qe5+ {[%emt 0:00:45]} 54. Rd4 {[%emt 0:00:01]} Rff6 {[%emt 0:00:20]} 55. Nxg6 {[%emt 0:00:03]} Rxg6 {[%emt 0:00:02]} 56. Qc3 {[%emt 0:00:15]} (56. b4 $142) 56... Kh6 {[%emt 0:00:26] [#]} (56... Rg5 {was worth a try.} 57. Qd3+ Kh6) 57. b4 $2 {[%emt 0:00:41]} (57. Qd2 $1 $18 {[%cal Rd2f4]}) 57... Rf6 $2 {[%emt 0:00:32]} (57... Rd6 $11 58. Rd2 Qxc3+ 59. Kxc3 Rf6) 58. Rd1 {[%emt 0:00:47]} Qg5 $2 {[%emt 0:01:12] [#]} (58... Qxc3+ 59. Kxc3 f3) 59. Rd5 {[%emt 0:01:23]} (59. Rg1 $142 $3 {[%mdl 512]} Qxg1 60. Qxf6+ Kh7 61. Qxf4) 59... Qh4 $2 {[%emt 0:00:27]} (59... Qg6 $18 60. Qh3+ Kg7) 60. Qd4 {[%emt 0:00:11]} Kg6 {[%emt 0:00:36]} 61. b5 {[%emt 0:00:21]} (61. Qe4+ $142 Kg7 62. Qe7+ Kg6 63. Qe8+ Rf7 64. Qg8+ Kf6 65. Ra5 f3 66. Ra6+ Ke5 67. Qxf7) 61... Qe1 {[%emt 0:00:18]} 62. Qd3+ {[%emt 0:00:34]} Kh6 {[%emt 0:00:32]} 63. Qh3+ {[%emt 0:00:01]} Kg7 {[%emt 0:00:16]} 64. Rd7+ {[%emt 0:00:08]} Rf7 {[%emt 0:00:19]} 65. Qg4+ {[%emt 0:00:17]} Kh6 {[%emt 0:00:38]} 66. Rd6+ {[%emt 0:00:07]} 1-0

[Event "Baku Open 2024"]
[Site "Baku"]
[Date "2024.07.02"]
[Round "4.29"]
[White "Saravana, Krishnan P."]
[Black "Zhalmakhanov, Ramazan"]
[Result "1-0"]
[ECO "B22"]
[WhiteElo "2236"]
[BlackElo "2505"]
[Annotator "TA"]
[PlyCount "85"]
[EventDate "2024.06.29"]
[EventType "swiss"]
[EventCountry "AZE"]
[SourceTitle "playchess.com"]
[Source "ChessBase"]
[SourceQuality "1"]
[TimeControl "5400+30"]

{[%evp 19,85,0,32,32,30,29,30,27,27,24,20,-1,0,-7,8,0,0,-3,0,-1,0,0,-7,-17,-2,-8,-7,-18,0,-14,103,103,91,111,93,100,104,103,120,129,107,114,136,108,121,53,63,52,38,35,40,25,16,8,8,8,8,8,8,8,8,8,8,8,8,8,5097,5061]} 1. e4 {[%emt 0:01:00]} c5 {[%emt 0:00:10]} 2. c3 {[%emt 0:01:37]} d5 {[%emt 0:02:58]} 3. exd5 {[%emt 0:00:21]} Qxd5 {[%emt 0:00:13]} 4. d4 {[%emt 0:00:15]} e6 {[%emt 0:00:50]} 5. Nf3 {[%emt 0:00:35]} Nf6 {[%emt 0:00:12]} 6. Na3 {[%emt 0:02:59]} Nc6 {[%emt 0:00:20]} 7. Nb5 {[%emt 0:03:03]} Qd8 {[%emt 0:03:27]} 8. dxc5 {[%emt 0:02:49]} Bxc5 {[%emt 0:01:12]} 9. Qxd8+ {[%emt 0:02:13]} Kxd8 {[%emt 0:00:06]} 10. Bf4 {[%emt 0:02:23]} Nd5 {[%emt 0:24:32]} 11. Bg3 {[%emt 0:07:35]} Ke7 {[%emt 0:14:42]} 12. O-O-O {[%emt 0:02:27]} a6 {[%emt 0:00:58]} 13. Nbd4 {[%emt 0:00:37] White has an edge.} Nxd4 {[%emt 0:04:40]} 14. Nxd4 {[%emt 0:00:27]} Rd8 {[%emt 0:00:07]} 15. Bc4 {[%emt 0:04:04]} Nf6 {[%emt 0:02:21]} 16. Nb3 {[%emt 0:06:54]} Bd6 {[%emt 0:07:12]} 17. Be2 {[%emt 0:13:15]} (17. Bxd6+ {simplifies} Rxd6 18. Rxd6 Kxd6 19. Be2) 17... Bxg3 {[%emt 0:06:01]} 18. hxg3 {[%emt 0:00:47]} Rxd1+ {[%emt 0:00:51]} 19. Rxd1 {[%emt 0:00:42]} Ne4 {[%emt 0:00:21]} 20. Rf1 {[%emt 0:07:08]} Bd7 {[%emt 0:02:22]} 21. Na5 {[%emt 0:00:50]} Rb8 {[%emt 0:02:12]} 22. Bf3 {[%emt 0:01:42]} Nd6 {[%emt 0:00:48]} 23. Rd1 {[%emt 0:02:28]} e5 {[%emt 0:01:33]} 24. Bd5 {[%emt 0:00:41]} Be6 {[%emt 0:01:33] [#]} (24... f6 $11 {remains equal.}) 25. Bxb7 $1 $16 {[%emt 0:06:10][%mdl 512] White is more active.} Rxb7 {[%emt 0:03:33]} (25... Nxb7 $2 {is the wrong capture.} 26. Nc6+ Ke8 27. Nxb8 $18) 26. Rxd6 $1 {[%emt 0:01:01]} Kxd6 {[%emt 0:00:26]} ({Not} 26... Rxb2 $2 27. Rxe6+ (27. Rxa6 $2 {perishes.} Rxf2 28. Nc6+ Kf6 $19) 27... Kxe6 28. Kxb2 $18) 27. Nxb7+ {[%emt 0:00:09][%mdl 4096] Endgame. KB-KN} Kc7 {[%emt 0:00:18]} 28. Nc5 {[%emt 0:03:06] aiming for Nxe6+.} Bxa2 {[%emt 0:01:09]} 29. Nxa6+ {[%emt 0:01:05]} Kd6 {[%emt 0:00:12] [#]} 30. Nb4 $1 {[%emt 0:00:41]} Bc4 {[%emt 0:00:09]} 31. Nc2 {[%emt 0:00:29]} f5 {[%emt 0:02:02]} 32. Ne3 {[%emt 0:07:32]} (32. f4 $16) 32... Be6 $14 {[%emt 0:00:48]} 33. f4 {[%emt 0:03:32] Kd2 is the strong threat.} h6 $1 {[%emt 0:00:30]} 34. Kd2 {[%emt 0:05:47] Threatens to win with Kd3.} g5 $1 {[%emt 0:00:38]} 35. fxe5+ {[%emt 0:00:19]} Kxe5 {[%emt 0:00:02]} 36. b4 {[%emt 0:00:14]} f4 {[%emt 0:02:48]} 37. gxf4+ {[%emt 0:00:31]} gxf4 {[%emt 0:00:09]} 38. Nc2 {[%emt 0:00:24]} Bc4 {[%emt 0:00:31]} 39. Ke1 {[%emt 0:03:59]} Ke4 {[%emt 0:03:28]} 40. Na3 {[%emt 0:00:12]} Be6 {[%emt 0:01:43]} 41. Kf2 {[%emt 0:03:08]} h5 {[%emt 0:00:41]} 42. Nb5 {[%emt 0:01:28]} Kd3 $2 {[%emt 0:01:15][%mdl 8192] [#]} (42... h4 $11) 43. Nd6 $1 {[%emt 0:01:32] Weighted Error Value: White=0.07 (flawless) /Black=0.11 (very precise) .  Loses game:     	---       	Black=1      Mistake:       	White=1     	Black=1      OK:         	White=10    	Black=15     Best:        	White=1     	Black=1      Strong:       	White=3     	Black=2      Brilliant:      	White=1     	---} 1-0

[Event "Baku Open 2024"]
[Site "Baku"]
[Date "2024.07.02"]
[Round "4.30"]
[White "Aradhya, Garg"]
[Black "Vrashank Chouhan"]
[Result "1-0"]
[ECO "E12"]
[WhiteElo "2418"]
[BlackElo "2209"]
[Annotator "TA"]
[PlyCount "67"]
[EventDate "2024.06.29"]
[EventType "swiss"]
[EventCountry "AZE"]
[SourceTitle "playchess.com"]
[Source "ChessBase"]
[SourceQuality "1"]
[TimeControl "5400+30"]

{[%evp 15,67,25,26,24,33,21,35,12,70,75,147,146,145,147,142,82,117,111,113,103,106,67,79,78,89,75,85,71,71,68,84,57,84,91,91,81,107,34,36,33,17,-13,-14,-16,0,0,140,148,222,213,1668,1529,29989,29990]} 1. d4 {[%emt 0:00:01]} Nf6 {[%emt 0:01:26]} 2. c4 {[%emt 0:00:05]} e6 {[%emt 0:00:04]} 3. Nf3 {[%emt 0:00:06]} b6 {[%emt 0:00:04]} 4. Nc3 {[%emt 0:02:43]} Bb7 {[%emt 0:01:50]} 5. a3 {[%emt 0:00:23]} d5 {[%emt 0:00:15]} 6. Qc2 {[%emt 0:00:42]} Nbd7 {[%emt 0:01:11]} 7. cxd5 {[%emt 0:00:17]} Nxd5 {[%emt 0:00:07]} 8. Nxd5 {[%emt 0:00:10]} exd5 {[%emt 0:00:38]} 9. Bg5 {[%emt 0:02:49]} Qc8 {[%emt 0:05:03]} 10. g3 {[%emt 0:06:04]} Bd6 {[%emt 0:12:15]} 11. Bh3 {[%emt 0:00:32] White is slightly better.} h6 {[%emt 0:00:28]} (11... O-O $11) 12. Bf4 $14 {[%emt 0:00:55]} Bxf4 {[%emt 0:01:24]} (12... Qd8 $142) 13. gxf4 $16 {[%emt 0:00:02] Ne5 would now be deadly.} Qd8 {[%emt 0:00:34]} 14. Rc1 {[%emt 0:03:12]} c6 {[%emt 0:04:23]} 15. Qf5 {[%emt 0:14:14]} (15. Bxd7+ $142 Qxd7 16. Ne5) 15... g6 {[%emt 0:06:32]} 16. Qd3 {[%emt 0:00:48] White is much more active. The black rooks are passive.} f5 {[%emt 0:03:04]} 17. Rg1 {[%emt 0:00:57]} Qf6 {[%emt 0:00:05]} 18. Ne5 {[%emt 0:02:55]} (18. Kd2 {is interesting.} O-O-O 19. Ne5 Rhg8 20. Nxd7 Kxd7 21. Rxg6 Rxg6 22. Bxf5+ Ke7 23. Bxg6 Qxf4+ 24. Qe3+) 18... Nxe5 {[%emt 0:02:14]} 19. fxe5 {[%emt 0:00:12]} Qe6 {[%emt 0:02:34]} 20. f3 {[%emt 0:06:48][%cal Bf2f3,Bf3f4][%mdl 32]} Rd8 {[%emt 0:04:47]} 21. Rc3 {[%emt 0:03:36]} O-O {[%emt 0:21:12]} 22. b4 {[%emt 0:10:41]} Kh7 {[%emt 0:01:54]} 23. f4 {[%emt 0:00:41]} Rc8 {[%emt 0:03:27]} 24. Qc2 {[%emt 0:01:14]} Rf7 {[%emt 0:01:28]} 25. Rcg3 {[%emt 0:03:17] And now Rxg6 would win.} Rg8 {[%emt 0:00:22]} 26. Kd2 {[%emt 0:01:01]} (26. Bf1 $16) 26... Ba6 $14 {[%emt 0:02:45]} 27. Rc1 {[%emt 0:01:05]} Rc8 {[%emt 0:02:00]} 28. e3 {[%emt 0:01:33][%cal Be2e3,Be3d4][%mdl 32] [#]} c5 $1 {[%emt 0:05:46]} 29. bxc5 {[%emt 0:00:55]} bxc5 {[%emt 0:00:03]} 30. dxc5 {[%emt 0:00:20]} d4 {[%emt 0:01:40]} 31. exd4 $16 {[%emt 0:01:03] Qb3 is the strong threat.} Rd7 {[%emt 0:09:51]} (31... Rd8 $16 32. Ke3 Bb5) 32. Ke3 $18 {[%emt 0:01:07][%cal Og3g6] aiming for Rxg6!} Rcd8 $2 {[%emt 0:02:02] [#]} (32... Qd5 33. Bxf5 (33. Rd1 Rxc5 34. dxc5 Qxd1 $16) 33... Qxd4+ 34. Kf3 Bb7+ (34... gxf5 35. Qxf5+ Kh8 36. Qf6+ Kh7 37. Qg6+ Kh8 38. Qxh6+ Rh7 39. Qf6+) 35. Kg4 (35. Be4 $2 Rxc5 36. Qe2 Rxc1 $19) 35... Rg7 (35... gxf5+ $2 36. Qxf5+ Kh8 37. c6 $18) 36. Bxc8 Bxc8+ 37. Kf3 Be6) 33. Rxg6 $3 {[%emt 0:01:22][%mdl 512]} Kxg6 {[%emt 0:01:42] [#]} (33... Qd5 34. Rxa6) 34. Bxf5+ $1 {[%emt 0:00:15][%mdl 512] Weighted Error Value: White=0.13 (very precise) /Black=0.38.  Mistake:       	White=2     	Black=5      Inaccurate:     	White=3     	Black=3      OK:         	White=6     	Black=9      Best:        	White=3     	Black=1      Brilliant:      	White=1     	Black=1} 1-0

[Event "Baku Open 2024"]
[Site "Baku"]
[Date "2024.07.02"]
[Round "4.31"]
[White "Kairbekova, Amina"]
[Black "Vantika Agrawal"]
[Result "1/2-1/2"]
[ECO "C11"]
[WhiteElo "2244"]
[BlackElo "2390"]
[Annotator "TA"]
[PlyCount "63"]
[EventDate "2024.06.29"]
[EventType "swiss"]
[EventCountry "AZE"]
[SourceTitle "playchess.com"]
[Source "ChessBase"]
[SourceQuality "1"]
[TimeControl "5400+30"]

{[%evp 12,63,6,0,15,14,27,18,15,-12,23,0,16,29,1,19,27,5,1,21,16,0,14,0,0,0,8,7,4,0,10,13,8,20,9,20,15,6,12,0,0,0,0,0,33,-208,0,-5,0,0,0,0,0,0]} 1. e4 {[%emt 0:00:04]} e6 {[%emt 0:00:35]} 2. d4 {[%emt 0:00:06]} d5 {[%emt 0:00:06]} 3. Nc3 {[%emt 0:00:07]} Nf6 {[%emt 0:00:28]} 4. e5 {[%emt 0:00:15]} Nfd7 {[%emt 0:00:09]} 5. f4 {[%emt 0:00:03]} c5 {[%emt 0:00:09]} 6. Nf3 {[%emt 0:00:04][%cal Bg1f3,Bf3d4,Bd4b3][%mdl 32]} Nc6 {[%emt 0:00:10]} 7. Be3 {[%emt 0:00:04]} Rb8 {[%emt 0:00:17]} 8. Qd2 $1 {[%emt 0:07:42]} Qa5 {[%emt 0:01:23]} 9. dxc5 {[%emt 0:03:07]} Bxc5 {[%emt 0:03:39]} 10. Nd4 {[%emt 0:07:09]} a6 {[%emt 0:08:49]} 11. a3 {[%emt 0:05:37]} O-O {[%emt 0:16:20]} 12. Nb3 {[%emt 0:07:57]} Bxe3 $1 {[%emt 0:02:16]} 13. Qxe3 {[%emt 0:00:04]} Qc7 {[%emt 0:07:29]} 14. Bd3 {[%emt 0:01:51]} b5 {[%emt 0:06:05]} 15. Ne2 {[%emt 0:09:44][%cal Bc3e2,Be2d4,Bd4c2,Bc2e3][%mdl 32]} Nb6 {[%emt 0:12:53]} 16. Nbd4 {[%emt 0:00:18]} Nxd4 {[%emt 0:05:53]} 17. Nxd4 {[%emt 0:01:33]} Nc4 {[%emt 0:09:38]} 18. Bxc4 {[%emt 0:01:36]} ({Don't play} 18. Qh3 h6) 18... dxc4 {[%emt 0:00:36] Black is weak on the dark squares} 19. c3 {[%emt 0:00:56]} a5 {[%emt 0:08:06]} 20. O-O {[%emt 0:00:09][%cal Bh1f1,Bf1d1,Bd1d4][%mdl 32]} Qc5 {[%emt 0:11:39]} 21. Nc2 {[%emt 0:11:01]} Qxe3+ {[%emt 0:01:14]} 22. Nxe3 {[%emt 0:00:05]} Bb7 {[%emt 0:00:16]} 23. Rfd1 {[%emt 0:00:43]} Be4 {[%emt 0:00:40]} 24. Rd4 {[%emt 0:02:19]} Bd3 {[%emt 0:00:38]} 25. a4 {[%emt 0:03:57]} bxa4 {[%emt 0:00:49]} 26. Nxc4 {[%emt 0:00:19]} Bxc4 {[%emt 0:00:35]} 27. Rxc4 $11 {[%emt 0:00:04] KRR-KRR} Rb6 {[%emt 0:03:08] [#]} 28. b3 $2 Rxb3 $2 {[%emt 0:00:00]} (28... axb3 $19 {...Rd8 would now be deadly.} 29. Kf2 g5 30. fxg5 Rd8) 29. Rcxa4 {[%emt 0:00:34] The position is equal.} Rb2 {[%emt 0:00:00]} 30. Rxa5 {[%emt 0:00:30]} Rc2 {[%emt 0:00:00]} 31. Ra7 {[%emt 0:00:30]} Rxc3 {[%emt 0:00:00]} 32. Ra8 {[%emt 0:00:00] Weighted Error Value: White=0.24 (precise) /Black=0.20 (precise) .  Loses game:     	White=1     	---        Missed win:     	---       	Black=1      Inaccurate:     	White=1     	Black=2      OK:         	White=9     	Black=11     Strong:       	White=1     	Black=1} 1/2-1/2

[Event "Baku Open 2024"]
[Site "Baku"]
[Date "2024.07.02"]
[Round "4.32"]
[White "Kamalidenova, Meruert"]
[Black "Amangeldy, Ernur"]
[Result "1/2-1/2"]
[ECO "B30"]
[WhiteElo "2360"]
[BlackElo "2223"]
[Annotator "TA"]
[PlyCount "52"]
[EventDate "2024.06.29"]
[EventType "swiss"]
[EventCountry "AZE"]
[SourceTitle "playchess.com"]
[Source "ChessBase"]
[SourceQuality "1"]
[TimeControl "5400+30"]

{[%evp 9,52,12,8,5,6,7,14,5,9,7,14,18,25,0,24,14,16,18,24,20,44,58,43,23,57,41,38,31,44,44,34,41,50,45,52,39,49,0,0,0,51,0,0,0,51]} 1. e4 {[%emt 0:00:04]} c5 {[%emt 0:02:29]} 2. Nf3 {[%emt 0:00:05]} Nc6 {[%emt 0:00:06]} 3. Bb5 {[%emt 0:00:07]} Nf6 {[%emt 0:01:43]} 4. Nc3 {[%emt 0:02:17]} Qc7 {[%emt 0:00:56]} 5. Bxc6 {[%emt 0:02:02]} dxc6 {[%emt 0:02:01]} 6. h3 {[%emt 0:00:44]} e5 {[%emt 0:02:15]} 7. d3 {[%emt 0:01:49]} Be7 {[%emt 0:01:26]} 8. Be3 {[%emt 0:03:29]} O-O {[%emt 0:05:58]} 9. O-O {[%emt 0:01:53]} Re8 {[%emt 0:01:41]} 10. a4 {[%emt 0:03:14]} a5 {[%emt 0:03:26]} 11. Qe2 {[%emt 0:04:14]} Nd7 {[%emt 0:01:03]} 12. Nd2 {[%emt 0:03:10]} Nf8 {[%emt 0:02:38]} 13. f4 {[%emt 0:03:06]} exf4 {[%emt 0:01:47]} 14. Bxf4 {[%emt 0:00:22]} Bd6 {[%emt 0:05:11]} 15. Bxd6 {[%emt 0:01:42]} Qxd6 {[%emt 0:02:25]} 16. Qf2 {[%emt 0:03:21]} Qd4 {[%emt 0:01:52]} 17. Ne2 {[%emt 0:06:16]} Qxf2+ {[%emt 0:00:18]} 18. Rxf2 {[%emt 0:00:06]} Ng6 {[%emt 0:02:09]} 19. Nc4 {[%emt 0:03:36]} Be6 {[%emt 0:02:59]} 20. b3 {[%emt 0:02:40]} Red8 {[%emt 0:06:17]} 21. Rff1 {[%emt 0:02:42]} Ra6 {[%emt 0:03:33]} 22. Nc3 {[%emt 0:09:04]} Raa8 {[%emt 0:05:20]} 23. Nb6 {[%emt 0:10:15] A dynamic duo of knights.} Ra6 {[%emt 0:00:23]} 24. Nc4 {[%emt 0:00:07]} Raa8 {[%emt 0:00:06]} 25. Nb6 {[%emt 0:09:09]} Ra6 {[%emt 0:00:06]} 26. Nc4 {[%emt 0:00:05]} Raa8 {[%emt 0:00:06] Weighted Error Value: White=0.11 (very precise) /Black=0.10 (very precise) .  Inaccurate:     	---       	Black=1      OK:         	White=8     	Black=7      Best:        	---       	Black=2} 1/2-1/2

[Event "Baku Open 2024"]
[Site "Baku"]
[Date "2024.07.02"]
[Round "4.33"]
[White "Bizhigitov, Zhangir"]
[Black "Aliyev, Ravan"]
[Result "1-0"]
[ECO "C72"]
[WhiteElo "2212"]
[BlackElo "2352"]
[Annotator "TA"]
[PlyCount "59"]
[EventDate "2024.06.29"]
[EventType "swiss"]
[EventCountry "AZE"]
[SourceTitle "playchess.com"]
[Source "ChessBase"]
[SourceQuality "1"]
[TimeControl "5400+30"]

{[%evp 12,59,38,56,33,16,22,23,32,18,85,82,82,16,28,31,112,130,114,62,87,73,328,324,285,245,386,390,562,561,610,428,535,543,602,603,898,603,852,517,1259,1094,1024,1302,1260,1243,1418,1375,1288,1352]} 1. e4 {[%emt 0:04:58]} e5 {[%emt 0:00:07]} 2. Nf3 {[%emt 0:00:38]} Nc6 {[%emt 0:00:07]} 3. Bb5 {[%emt 0:00:24]} a6 {[%emt 0:00:07]} 4. Ba4 {[%emt 0:00:09]} d6 {[%emt 0:00:06]} 5. O-O {[%emt 0:01:38]} Bd7 {[%emt 0:00:05]} 6. c4 {[%emt 0:00:46]} Nf6 {[%emt 0:03:07]} 7. Nc3 {[%emt 0:03:35]} g6 {[%emt 0:03:51]} 8. d4 {[%emt 0:04:23]} exd4 {[%emt 0:00:16]} 9. Nxd4 {[%emt 0:00:13]} Bg7 {[%emt 0:00:05] White has an edge.} 10. Nxc6 {[%emt 0:03:05]} bxc6 {[%emt 0:00:27] [#]} (10... Bxc6 $11 {keeps the balance.} 11. Bxc6+ bxc6) 11. c5 $1 $16 {[%emt 0:02:07]} dxc5 {[%emt 0:02:01]} 12. e5 {[%emt 0:03:48] White is more active.} (12. Bg5 $16 h6 13. Be3) 12... Nd5 $1 $11 {[%emt 0:01:03]} 13. Ne4 {[%emt 0:01:49]} Bxe5 {[%emt 0:11:39] [#]} (13... Qe7 $1 $14) 14. Bg5 $1 $16 {[%emt 0:12:45]} (14. Nxc5 O-O $14) 14... f6 {[%emt 0:01:55] [#]} 15. Bh6 {[%emt 0:00:48]} (15. Nxc5 $1 $16 {[%cal Of1e1] Re1! would now be deadly.} Kf7 (15... fxg5 $2 16. Re1 $18) 16. Rc1) 15... Qe7 $14 {[%emt 0:27:13][%cal Oe8c8]} 16. Rc1 $36 {[%emt 0:13:16][%mdl 2048] White is really pushing.} Kf7 $2 {[%emt 0:01:58][%mdl 8192] A mistake that costs the game.} (16... c4 $16) 17. Nxc5 $18 {[%emt 0:05:09]} Rad8 {[%emt 0:16:32]} 18. Nxd7 {[%emt 0:04:07]} (18. Nxa6 Be6 $14) 18... Qxd7 {[%emt 0:00:02]} (18... Rxd7 {might work better.} 19. Bxc6 (19. Rxc6 Rhd8 $18) 19... Rhd8 20. Bxd7 Qxd7) 19. Rxc6 {[%emt 0:05:47]} (19. Bxc6 Qe6 $16) 19... Qf5 {[%emt 0:00:07] Prevents f4} (19... Rhe8 {was necessary.} 20. Rxf6+ (20. Rxa6 Qf5 $18) 20... Bxf6) 20. Bb3 {[%emt 0:04:57] A strong pair of Bishops. White is clearly winning.} ({Less strong is} 20. Rxa6 Bf4 $16) 20... g5 {[%emt 0:00:39]} 21. Qh5+ {[%emt 0:08:45]} ({Weaker is} 21. Bxd5+ Kg6 22. Be6 Bxh2+ 23. Kh1 Qe4 $14) 21... Qg6 {[%emt 0:01:48]} 22. Qh3 {[%emt 0:00:12]} g4 {[%emt 0:00:36]} 23. Qh4 {[%emt 0:00:14]} Qe4 {[%emt 0:01:28]} 24. Rc4 {[%emt 0:04:36]} Qe2 {[%emt 0:16:19]} 25. Rxg4 {[%emt 0:02:00]} c6 {[%emt 0:00:18]} (25... Rhg8 $142) 26. Re4 {[%emt 0:05:24]} Qxb2 {[%emt 0:00:49]} 27. Qh5+ {[%emt 0:00:14]} Ke7 {[%emt 0:01:49]} 28. f4 {[%emt 0:00:31]} Rhg8 {[%emt 0:00:40]} 29. Re2 {[%emt 0:00:46]} (29. fxe5 $2 Qxg2#) 29... Qd4+ {[%emt 0:00:12]} 30. Kh1 {[%emt 0:00:05] Weighted Error Value: White=0.93/Black=0.74.  Loses game:     	---       	Black=1      Mistake:       	White=2     	Black=4      Inaccurate:     	---       	Black=1      OK:         	White=8     	Black=5      Best:        	---       	Black=1      Strong:       	White=1     	Black=1} 1-0